Cogmind - Beta 15 @@@ ROGUE MODE // 2025.09.20 @ 15:32:42 Player: Blue Result: Destroyed by G-47 Trooper with Particle Gun Performance ------------- Evolutions (2) 1000 Regions Visited (3) 600 Robots Destroyed (27) 135 Value Destroyed (862) 862 Prototype IDs (7) 140 Alien Tech Used (0) 0 Bonus (0) 0 TOTAL SCORE: 2737 Bonus ------- None Cogmind --------- Core Integrity 0/550 Matter 300/300 Energy 18/100 System Corruption 0% Temperature Cool (18) Movement Walking (210) Ox1 Location -8/Materials Parts ------- > --- POWER (1) -------- (None) > --- PROPULSION (3) --- Makeshift Leg > --- UTILITY (5) ------ Improved Heat Sink Large Storage Unit Targeting Computer > --- WEAPON (2) ------- EM Pulse Cannon > --- INVENTORY (15) --- Cryofiber Web Improved Heat Sink Small Storage Unit Improved Signal Interpreter Hacking Suite System Shield System Shield Heavy Hammer Peak State ------------ > --- POWER ------------ Light Nuclear Core > --- PROPULSION ------- Makeshift Leg Myomer Leg Myomer Leg > --- UTILITY ---------- Large Storage Unit Subdweller Optics Targeting Computer Makeshift Light Armor Plating Makeshift Light Armor Plating > --- WEAPON ----------- Barrage Gun Bore Cannon > --- INVENTORY -------- Light Nuclear Core Light Nuclear Core Small Storage Unit Improved Signal Interpreter Scrap Shield Medium Laser Advanced Beam Rifle Assault Rifle Battle Rifle Slug Cannon [Rating: 43] Favorites ----------- Power Ion Engine Engine Ion Engine Power Core Light Nuclear Core Propulsion Light Treads Treads Light Treads Leg Myomer Leg Utility Large Storage Unit Device Improved Heat Sink Storage Large Storage Unit Processor Targeting Computer Hackware Hacking Suite Protection Makeshift Light Armor Plating Weapon Slug Cannon Energy Gun Medium Laser Energy Cannon Heavy Particle Cannon Ballistic Gun Enhanced Autogun Ballistic Cannon Slug Cannon Build | -11 -10 -10 -8 ------- Run | Yrd Mat Sub Mat Slots Evolved 4 | . . . 4 Power . | . . . . Propulsion 1 | . . . 1 Utility 3 | . . . 3 Weapon . | . . . . Parts Attached 34 | 6 2 8 18 Power 6 | 1 . 2 3 Engine 4 | 1 . 2 1 Core 2 | . . . 2 Reactor . | . . . . Propulsion 6 | 2 . 2 2 Treads 2 | 2 . . . Leg 4 | . . 2 2 Wheel . | . . . . Hover . | . . . . Flight . | . . . . Utility 10 | 1 1 1 7 Device 4 | . . . 4 Storage 2 | 1 1 . . Processor 1 | . . . 1 Hackware 1 | . . . 1 Protection 2 | . . 1 1 Artifact . | . . . . Weapon 12 | 2 1 3 6 Energy Gun 3 | 1 1 . 1 Energy Cannon 3 | . . . 3 Ballistic Gun 4 | 1 . 1 2 Ballistic Cannon 2 | . . 2 . Launcher . | . . . . Special Weapon . | . . . . Impact Weapon . | . . . . Slashing Weapon . | . . . . Piercing Weapon . | . . . . Special Melee Weapon . | . . . . Unidentified Prototypes 3 | . . . 3 Parts Lost 15 | . . 1 14 Power 2 | . . . 2 Propulsion 3 | . . . 3 Utility 4 | . . . 4 Weapon 6 | . . 1 5 Highest Loss Streak 11 | . . 1 11 To Critical Strikes . | . . . . Average Backups 8 | . 3 7 12 Power 1 | . 1 2 1 Propulsion . | . . . . Utility 3 | . . 3 6 Weapon 2 | . . 2 4 Tool/Special . | . . . . Unused Backups 10 | . . . 10 Power 2 | . . . 2 Propulsion . | . . . . Utility 7 | . . . 7 Weapon 1 | . . . 1 Tool/Special . | . . . . Average Slot Usage (%) 90 | . 85 90 92 Engine 11 | . 14 13 4 Core 1 | . . . 3 Treads 18 | . 28 26 . Leg 8 | . . 1 23 Device 4 | . . . 13 Storage 12 | . 14 14 9 Processor 2 | . . . 8 Protection 8 | . . 9 8 Energy Gun 8 | . 25 9 4 Energy Cannon 2 | . . . 8 Ballistic Gun 1 | . 2 1 3 Ballistic Cannon 8 | . . 13 1 Peak Build Rating 43 | 6 7 30 43 Average Rating 20 | 4 6 13 37 On Entrance 10 | . 6 6 30 Naked Turns . | . . . . Heaviest Build 50 | 12 27 41 50 Greatest Support 70 | 40 40 50 70 Greatest Overweight (x) 2 | . . 1 2 Average Overweight (x) . | . . . . Largest Inventory Capacity 15 | 8 15 15 15 Average Capacity 14 | 6 12 15 15 Most Carried 15 | 1 4 13 15 Average Carried 9 | . 3 8 13 Final Capacity 15 | 8 15 15 15 Final Carried 13 | 1 4 13 8 Class Distribution -------------------- 80% | Mutant 16% | Scavenger-Mutant Dominant Class ---------------- Mutant | -10/Materials Mutant | -10/Subcaves Scavenger-Mutant | -8/Materials Resources | -11 -10 -10 -8 ----------- Run | Yrd Mat Sub Mat Matter Collected 853 | 217 63 140 433 Remotely . | . . . . Salvage Created 940 | . 145 38 757 Parts 65 | . 9 1 55 Haulers Intercepted . | . . . . Recyclers Shooed 1 | . . . 1 Parts Field Recycled . | . . . . Retrieved Matter . | . . . . Parts Self-Destructed 7 | . . 7 . Prevented . | . . . . Kills | -11 -10 -10 -8 ------- Run | Yrd Mat Sub Mat Combat Hostiles Destroyed 20 | . 5 1 14 Guns 10 | . 4 . 6 Cannons 9 | . . 1 8 Classes Destroyed 10 | . 3 1 6 Builder 3 | . . . 3 Operator 1 | . . . 1 Watcher 3 | . 1 . 2 Swarmer 6 | . 3 . 3 Grunt 7 | . 2 . 5 Sentry 3 | . . . 3 Specialist 1 | . . . 1 Hunter 1 | . . . 1 Heavy 1 | . . . 1 Subdweller 1 | . . 1 . Best Kill Streak 8 | . 3 1 8 Combat Bots Only 7 | . 3 1 7 Max Kills in Single Turn 2 | . 2 1 1 Gunslinging 1 | . 1 . . Exploded . | . . . . Melee . | . . . . Uniques/NPCs Destroyed . | . . . . Combat | -11 -10 -10 -8 -------- Run | Yrd Mat Sub Mat Hostile Shots Fired 241 | . 20 3 218 Missed 75 | . 2 1 72 Hits 166 | . 18 2 146 Projectile 166 | . 18 2 146 Critical Strikes 6 | . . 1 5 Damage Taken 2867 | . 195 228 2444 Core 641 | . 55 21 565 Absorbed by Shields 68 | . . . 68 Core Remaining (%) 84 | 100 . 69 . Volleys Fired 97 | . 12 8 77 Largest 2 | . 2 2 2 Hottest 136 | . 100 68 136 Shots Fired 177 | . 24 10 143 Gun 102 | . 24 2 76 Cannon 75 | . . 8 67 Launcher . | . . . . Special . | . . . . Kinetic 56 | . . 10 46 Thermal 115 | . 24 . 91 Explosive . | . . . . Electromagnetic 6 | . . . 6 Robot Hit Streak 14 | . 8 2 14 Robot Miss Streak 4 | . 2 1 4 Penetration Max . | . . . . Secondary Targets 2 | . 2 . . Max Gunslinging Chain 1 | . 1 . . Shots Hit Robots 105 | . 17 2 86 Core Hits 45 | . 8 1 36 Critical Kills . | . . . . Critical Parts Destroyed 1 | . . . 1 Critical Strikes 8 | . 2 1 5 Burn 6 | . 2 . 4 Destroy 2 | . . 1 1 Melee Attacks . | . . . . Impact . | . . . . Slashing . | . . . . Piercing . | . . . . Sneak Attacks . | . . . . Combat Hostiles . | . . . . Follow-up Attacks . | . . . . Damage Inflicted 2234 | . 228 47 1959 Guns 1132 | . 228 . 904 Cannons 1067 | . . 47 1020 Explosions . | . . . . Melee . | . . . . Ramming 35 | . . . 35 Kinetic 511 | . . 47 464 Thermal 1593 | . 228 . 1365 Explosive . | . . . . Electromagnetic 95 | . . . 95 Impact . | . . . . Slashing . | . . . . Piercing . | . . . . Highest Corruption . | . . . . Average Corruption . | . . . . Corruption Purged . | . . . . Corruption Blocked . | . . . . Overload Shots . | . . . . Overflow Damage 36 | . . . 36 Projectiles 36 | . . . 36 Explosions . | . . . . Melee . | . . . . Knockbacks . | . . . . Impact . | . . . . Kinetic . | . . . . Secondary . | . . . . Self-Inflicted Damage . | . . . . Shots . | . . . . Rammed . | . . . . Targets Rammed 7 | . . . 7 Kicked 7 | . . . 7 Crushed . | . . . . Highest Temperature 304 | . 297 . 304 Average Temperature 83 | . 100 . 79 Received Heat Transfer 476 | . 72 6 398 Siege Activations . | . . . . Martial Activations . | . . . . Shielding Activations . | . . . . Robots Disrupted . | . . . . Combat Hostiles . | . . . . Robots Corrupted . | . . . . Combat Hostiles . | . . . . Parts Fried . | . . . . Impact Corruptions . | . . . . Robots Melted 1 | . 1 . . Combat Hostiles 1 | . 1 . . Parts Melted 6 | . 4 . 2 Heat Transferred 3293 | . 814 . 2479 Parts Sabotaged . | . . . . Parts Stolen . | . . . . Parts Stripped . | . . . . Power Chain Reactions . | . . . . Alert | -11 -10 -10 -8 ------- Run | Yrd Mat Sub Mat Maximum Alert Level . | . . . . Low Security (%) 100 | 100 100 . 100 Level 1 . | . . . . Level 2 . | . . . . Level 3 . | . . . . Level 4 . | . . . . Level 5 . | . . . . High Security . | . . . . Max Security . | . . . . Peak Influence 159 | . 72 . 159 Initial . | . . . . Average 31 | . 32 . 33 Influence Increases 653 | . 132 . 521 Destroy 0b10 Robot/C 380 | . 100 . 280 Destroy 0b10 Robot/NC 35 | . 5 . 30 Destroy Leader 106 | . 22 . 84 Successful Hack 10 | . 5 . 5 Disable Machine 45 | . . . 45 Destroy Structure 17 | . . . 17 Lose Combat Pursuer 60 | . . . 60 Influence Decreases 582 | . 100 32 450 Entered New Map 16 | . . 16 . Time Decay 426 | . 100 16 310 Lost Part 140 | . . . 140 Squads Dispatched 4 | . . . 4 Investigation . | . . . . Extermination . | . . . . Reinforcement 4 | . . . 4 Assault . | . . . . Garrison . | . . . . Intercept . | . . . . Searches Triggered . | . . . . Construction Impeded 1 | . . . 1 Haulers Reinforced . | . . . . Active Scanning Responses . | . . . . Cargo Convoy Interrupts . | . . . . Stealth | -11 -10 -10 -8 --------- Run | Yrd Mat Sub Mat Distress Signals 2 | . 1 . 1 Communications Jammed . | . . . . Distress Signals . | . . . . Times Spotted 48 | . 8 5 35 Peak Tracking Total 5 | . 4 2 5 Tactical Retreats 3 | . . . 3 Traps | -11 -10 -10 -8 ------- Run | Yrd Mat Sub Mat Traps Triggered 4 | . . 4 . Indirectly . | . . . . Trap Hack Attempts . | . . . . Triggered . | . . . . Disarmed . | . . . . Reprogrammed . | . . . . Reused . | . . . . Traps Extracted . | . . . . Installed . | . . . . Triggered . | . . . . Machines | -11 -10 -10 -8 ---------- Run | Yrd Mat Sub Mat Machines Disabled 3 | . . . 3 Max in Single Turn 1 | . . . 1 Machines Repaired . | . . . . Machines Dismantled . | . . . . Machines Sabotaged . | . . . . Overloaded Fab Kills . | . . . . Hacking | -11 -10 -10 -8 --------- Run | Yrd Mat Sub Mat Machines Accessed 6 | . 3 . 3 Terminals 6 | . 3 . 3 Fabricators . | . . . . Repair Stations . | . . . . Recycling Units . | . . . . Scanalyzers . | . . . . Garrison Access . | . . . . Total Hacks 20 | . 13 . 7 Successful 6 | . 4 . 2 Failed 14 | . 9 . 5 Catastrophic 5 | . 3 . 2 Database Lockouts . | . . . . Manual 7 | . 4 . 3 Terminals 20 | . 13 . 7 Fabricators . | . . . . Repair Stations . | . . . . Recycling Units . | . . . . Scanalyzers . | . . . . Garrison Access . | . . . . Terminal Hacks 6 | . 4 . 2 Record 2 | . 2 . . Prototype ID Bank 2 | . . . 2 Locate Traps 1 | . 1 . . Zone Layout 1 | . 1 . . Fabricator Hacks . | . . . . Repair Station Hacks . | . . . . Recycling Unit Hacks . | . . . . Scanalyzer . | . . . . Garrison Access Hacks . | . . . . Unauthorized Hacks . | . . . . Terminals . | . . . . Fabricators . | . . . . Repair Stations . | . . . . Recycling Units . | . . . . Scanalyzers . | . . . . Garrison Access . | . . . . Data Cores Recovered . | . . . . Used . | . . . . Hacking Detections 6 | . 3 . 3 Full Trace Events . | . . . . Feedback Events . | . . . . Feedback Blocked . | . . . . Robot Schematics Acquired . | . . . . Robots Built . | . . . . Authchips . | . . . . Time . | . . . . Total Robot Build Rating . | . . . . Part Schematics Acquired . | . . . . Parts Built . | . . . . Authchips . | . . . . Time . | . . . . Total Part Build Rating . | . . . . Parts Repaired . | . . . . Time . | . . . . Parts Recycled . | . . . . Recycled Matter . | . . . . Retrieved Matter . | . . . . Retrieved Components . | . . . . Parts Scanalyzed . | . . . . Part Schematics Acquired . | . . . . Parts Damaged . | . . . . Bothacking | -11 -10 -10 -8 ------------ Run | Yrd Mat Sub Mat Used RIF Installer . | . . . . Robots Hacked . | . . . . Non-combat . | . . . . Combat . | . . . . Robot Hacks Applied . | . . . . Relay Couplers Released . | . . . . Fabnet Peak Effective % . | . . . . Robots Rewired . | . . . . Allies Hacked . | . . . . Hacks Repelled . | . . . . Allies | -11 -10 -10 -8 -------- Run | Yrd Mat Sub Mat Total Allies . | . . . . Largest Group . | . . . . Highest-Rated Group . | . . . . Highest-Rated Ally . | . . . . Total Orders . | . . . . Ally Attacks . | . . . . Total Damage . | . . . . Kills . | . . . . Allies Corrupted . | . . . . Allies Melted . | . . . . Intel | -11 -10 -10 -8 ------- Run | Yrd Mat Sub Mat Active Infowar (turns) 615 | . . . 615 Optics 615 | . . . 615 Robot Analysis Total . | . . . . Derelict Logs Recovered 1 | . . 1 . Drone Launches . | . . . . Drone Recoveries . | . . . . Exploration | -11 -10 -10 -8 ------------- Run | Yrd Mat Sub Mat Turns Passed 3774 | 68 246 2341 1119 Spaces Moved 2031 | 40 128 1350 513 Core 4 | 4 . . . Treads 1392 | 36 128 1228 . Legs 635 | . . 122 513 Wheels . | . . . . Hover . | . . . . Flight . | . . . . Fastest Speed 50 | 50 160 120 120 Average Speed 150 | 149 160 156 130 Slowest Speed 280 | 160 160 190 280 Overloaded Moves . | . . . . Propulsion Burnouts . | . . . . Robots Hopped . | . . . . Potential Cave-ins . | . . . . Cave-ins Triggered . | . . . . Exploration Rate (%) 40 | 4 32 84 42 Regions Visited 3 Branch Regions 1 Pre-discovered Areas . | . . . . Known Exits Taken . | . . . . Unknown Exits Taken 3 | 1 1 1 . Scrap Searched 5 | . . 5 . Spaces Dug 2 | . . 2 . Terrain Destroyed 21 | . . 3 18 Melee . | . . . . Projectile 21 | . . 3 18 AOE . | . . . . Terrain Rammed . | . . . . Walls Destroyed . | . . . . Machines Disabled . | . . . . Actions | -11 -10 -10 -8 --------- Run | Yrd Mat Sub Mat Total 2581 | 46 145 1564 826 Wait 363 | . 1 187 175 Move 2028 | 39 127 1349 513 Hop . | . . . . Pick Up 27 | 1 2 10 14 Fast Attach 10 | 6 1 . 3 Attach 14 | . . 3 11 Detach 2 | . 1 1 . Swap 20 | . 1 5 14 Drop 13 | . . 1 12 Fire 97 | . 12 8 77 Melee . | . . . . Ram . | . . . . Kick 7 | . . . 7 Crush . | . . . . Escape Stasis . | . . . . Rewire . | . . . . Trap . | . . . . Miscellaneous . | . . . . Route ------- -11/Scrapyard -10/Materials (discovered 2 exits: [*Min] / [*Sub]) -10/Subcaves (discovered 3 exits: *Mat x2 / Rec) -8/Materials History --------- Turn | Location | Event 11 | -11/Scrapyard | Discovered new exit (range 14) 69 | -11/Scrapyard | Entered Materials 159 | -10/Materials | Discovered new exit (range 6) 299 | -10/Materials | Discovered new exit (range 10) 304 | -10/Materials | Build established: Mutant 315 | -10/Materials | Entered Subcaves 732 | -10/Subcaves | Shifting Twisted Machinery released Flamer 866 | -10/Subcaves | Discovered new exit (range 16) 872 | -10/Subcaves | Identified exit to Recycling 1709 | -10/Subcaves | Discovered new exit (range 15) 2163 | -10/Subcaves | Disturbed a concealed Subdweller 2656 | -10/Subcaves | Entered Materials 2656 | -8/Materials | Evolved 4 slots: Propulsion x1, Utility x3 3609 | -8/Materials | Build established: Scavenger-Mutant 3610 | -8/Materials | Destroyed 7 combat bots 3640 | -8/Materials | Core integrity fell below 50% 3689 | -8/Materials | Core integrity fell below 20% 3708 | -8/Materials | Lost 11 parts (1p3n3u4w) 3775 | -8/Materials | Destroyed by G-47 Trooper with Particle Gun Last Messages --------------- 03693_ Acquired EM Pulse Cannon. 03695_ X-57 Shotgunner destroyed. 03700_ Acquired Hardlight Generator. 03707_ Destroyed Imp. Hover Unit. 03718_ K-01 Serf collects debris. 03718_ Acquired 30 matter. 03719_ R-06 Scavenger collects Corrupted Nuclear Core. 03723_ R-06 Scavenger collects Shotgun. 03730_ R-06 Scavenger collects Aluminum Leg. 03755_ K-01 Serf collects debris. 03759_ Lgt. Nuclear Core destroyed. 03759_ Kicked G-47 Trooper. 03762_ K-01 Serf collects debris. 03764_ Kicked G-47 Trooper. 03765_ K-01 Serf collects debris. 03766_ Kicked G-47 Trooper out of the way. 03769_ EM Pulse Cannon destroyed. 03770_ G-47 Trooper IFF system glitched. 03773_ Hardlight Generator destroyed. Map ----- +----------------------------------------------------+ | ?????????????????????????????????????????????????? | | ???????#??########???????????????????????????????? | | ???????# """ """ #???????????????????????????????? | | ???????# """ """ #???????????????????????????????? | | ???????# """ """ #???????????????????????????????? | | ???????# #???????????????????????????????? | | ???????# ! #???????????????????????????????? | | ????????? #???????????????????????????????? | | ??????????? #???????????????????????????????? | | ????????????? #???????????????????????????????? | | ????###########+##############???????????????????? | | ????# # #???????????????????? | | ????# ^ # #???????????????????? | | ????# """ !]^ """ =#= #???????????????????? | | ????# """ !^ """ *+%[ #???????????????????? | | ????# " " ! """ %#= #???????????????????? | | ????# =# #???????????????????? | | ????+ # #???????????????????? | | # % % ! # #???????????????????? | | ?#+## ####%* # " ??????????????????? | | ?# #### %[# # ????????????????? | | ?# #####+##### ! # # ???????????????? | | ?# ## [ [# %# #? "??????????????? | | ## ## """ # %=########?? ??????????????? | | ## """ #=*g############+####??????????? | | + """ " # g%[%@ !!%!= ??????? | | ## "" # %=!%g= !*%=!= ??????? | | ## T" # = u %=|! ??????? | | ## ####### == "" ###########+######+### ???????? | | ?# #?????# == "" #?###? ???????????????????????? | | ?# #?????# == #?????? ??????????????????????? | | ?# #?????###########????? "?????????????????????? | | ?# ########## * #?????? ""????????????????????? | | ?# ! + #?????? ???????????????????? | | ##+##+##### # ""#???????"""???????????????????? | | #???# #!! T"#???????""????????????????????? | | #???# #! [ ""#?????????????????????????????? | | #???# #!*] #?????????????????????????????? | | #####+##### ##?????????????????????????????? | | ## #????##??????????????????????????????? | | ## #????????????????????????????????????? | | ###+#"## #????????????????????????????????????? | | ### #### #????????????????????????????????????? | | % !% + #????????????????????????????????????? | | ######## #????????????????????????????????????? | | ???????# ]#????????????????????????????????????? | | ####???# #????????????????????????????????????? | | #???# #????????????????????????????????????? | | "" #???######????????????????????????????????????? | | "" #?????????????????????????????????????????????? | +----------------------------------------------------+ Best States ------------- Heat Dissipation 45 Energy Generation 15 Energy Capacity 280 Matter Stores 300 Matter Capacity 300 Sight Range 21 Terrain Scan Density 10 Armor Coverage 200 Evasion (%) 55 Targeting Accuracy 5 Recoil Reduction 2 Offensive Hacking 10 Item Schematics ----------------- None Robot Schematics ------------------ None Fabricated ------------ Nothing Repaired ---------- Nothing Alien Tech Used ----------------- None Achievements -------------- None Challenges ------------ None Game ------ Seed InsulatedEnhancedCore Manual? 0 Play Time 00:33:34 Cumulative 50.9 hours Start 2025.09.20 @ 15:02:48 End 2025.09.20 @ 15:32:42 Sessions 1 Manual Loads 0 Difficulty Rogue Special Mode None Game No. 35 Rogue 35 Adventurer 0 Explorer 0 Win Type - Total 0 Types 0/0/0/0/0/0/0/0/0/0 Lore% 13 Gallery% 34 Achievement% 33 Wizard Run 0 Options --------- Layout 1 ASCII 0 Keyboard 1 Movement Arrows Keybinds 0 Fullscreen 1 Font 24/Smallcaps Map View 50x35 Zoom Use 0% Tactical HUD 1 Map Filters NONE Filters NONE Steam 1 RUN: 5306c2b9-b887-4a97-b293-837c62ebf689